{"text_format":"1","workbook":"xlsx","n_sheets":1,"sheets":["Detailní rozpočet"],"not_rendered":{"charts":0,"images":0,"macros":1,"external_links":0,"defined_names":1,"comments":1,"pivot_tables":0},"unopened":[],"bounds":{"document_bytes":16777216,"sheet_cells":100000,"rows_first":2000,"rows_last":500,"rows_between":2000,"halvings":0,"cell_chars":16384,"cell_head_chars":4096},"cells_cut":0,"cells_raw":0,"read":"whole","date_system":"1900"}

{"sheet":"Detailní rozpočet","index":0,"n_rows":39,"n_cols":7,"rows_kept":39,"cut":false,"hidden":false,"merged":[[0,0,2,6]]}
["Detailní rozpočet projektu"]
[]
[]
["Obecné poznámky: Žadatel vyplní zeleně zbarvené buňky, přičemž může do tabulky vkládat libovolný počet řádků dle logiky naznačené ve vzoru níže. "]
["Číslo","Rozpočtové položky a stručný popis uvedeného výdaje","Výdaj za jednotku","Jednotka","Počet jednotek","Celkové očekávané výdaje\n100%","Komentář / poznámky k uvedeným výdajům"]
[null,null,"CZK",null,null,"CZK"]
[1,"Výdaje na řízení projektu",null,null,null,{"$f":"F8+F12+F15","v":0}]
["1.1","Osobní výdaje",null,null,null,{"$f":"SUM(F9:F11)","v":0}]
["1.1.1","pracovní pozice, úvazek, relevantní jednotka (např. projektový manažer, HPP, měsíční plat)",0,null,null,{"$f":"C9*E9","v":0}]
["1.1.2","atd.",0,null,null,{"$f":"C10*E10","v":0}]
[null,null,null,null,null,{"$f":"C11*E11","v":0}]
["1.2","Externí výdaje na dodávky a služby",null,null,null,{"$f":"SUM(F13:F14)","v":0}]
["1.2.1","Např. veřejná zakázka - monitorování dopadu projektu",0,null,null,{"$f":"C13*E13","v":0}]
["1.2.2","atd.",0,null,null,{"$f":"C14*E14","v":0}]
["1.3.","Ostatní přímé výdaje",null,null,null,{"$f":"SUM(F16:F18)","v":0}]
["1.3.1","Vybavení expoziční síně",0,null,null,{"$f":"C16*E16","v":0}]
["1.3.2","atd.",null,null,null,{"$f":"C17*E17","v":0}]
[null,null,null,null,null,0]
[2,"Výdaje na realizaci aktivity č. 1 - rekonstrukce stavebního objektu",null,null,null,{"$f":"F20+F23+F27","v":0}]
["2.1","Osobní výdaje",null,null,null,{"$f":"SUM(F21:F22)","v":0}]
["2.2.1","pracovní pozice, úvazek, relevantní jednotka (např. investniční expert, HPP, měsíční plat)",0,null,null,{"$f":"C21*E21","v":0}]
["2.2.2","atd.",null,null,null,{"$f":"C22*E22","v":0}]
["2.2","Externí výdaje na dodávky a služby",null,null,null,{"$f":"SUM(F24:F26)","v":0}]
["2.2.1","Veřejná zakázka malého rozsahu - zpracování projektové dokumentace",0,null,null,{"$f":"C24*E24","v":0}]
["2.2.2","Veřejná zakázka nadlimitní - demoliční a stavební práce",null,null,null,{"$f":"C25*E25","v":0}]
["2.2.3","atd.",null,null,null,0]
["2.3","Ostatní přímé výdaje",null,null,null,{"$f":"SUM(F28:F29)","v":0}]
["2.3.1",null,null,null,null,{"$f":"C28*E28","v":0}]
[null,null,null,null,null,{"$f":"C29*E29","v":0}]
[3,"Přímé výdaje švýcarského partnera",null,null,null,{"$f":"SUM(F31:F34)","v":0}]
["3.1","pracovní pozice, úvazek, relevantní jednotka (např. konzultant expozičního vybavení, 60h., hodinová odměna)",0,null,null,{"$f":"C31*E31","v":0}]
["3.2","externí dodávky/služby",0,null,null,{"$f":"C32*E32","v":0}]
["3.3","atd.",null,null,null,0]
[null,null,null,null,null,0]
[4,"Paušální výdaje - max. 10% z celkových přímých způsobilých výdajů zahrnutých do kapitol Osobní výdaje, Externí výdaje na dodávky a služby, Ostatní přímé výdaje a Přímé výdaje na švýcarského partnera",null,null,null,{"$f":"SUM(F36:F38)","v":0}]
["4.1","Nepřímé výdaje projektu",0,null,null,{"$f":"C36*E36","v":0}]
[null,null,null,null,null,{"$f":"C37*E37","v":0}]
[null,null,null,null,null,0]
[null,"CELKEM",null,null,null,{"$f":"F7+F19+F30+F35","v":0}]